fUST/lending_fUST_20251002
["ID","MTS","AMOUNT","RATE_DAILY","PERIOD"]
[388737818,1759342248908,-500.0,0.0002,2]
[388737819,1759342248918,-500.0,0.0002,2]
[388737820,1759342248927,-928.86,0.0002,2]
[388737821,1759342248936,-500.0,0.0002,2]
[388737822,1759342248947,-500.0,0.0002,2]
[388737823,1759342248956,-500.0,0.0002,2]
[388737824,1759342248966,-500.0,0.0002,2]
[388737825,1759342248977,-500.0,0.0002,2]
[388737826,1759342248987,-500.0,0.0002,2]
[388737827,1759342248997,-500.0,0.0002,2]
[388737828,1759342249007,-500.0,0.0002,2]
[388737829,1759342249017,-500.0,0.0002,2]
[388737830,1759342249028,-833.61,0.0002,2]
[388737831,1759342249038,-798.88,0.0002,2]
[388737832,1759342249050,-500.0,0.0002,2]
[388737833,1759342249060,-500.0,0.0002,2]
[388737834,1759342249070,-500.0,0.0002,2]
[388737835,1759342249080,-375.0633541,0.0002,2]
[388737836,1759342249091,-500.0,0.0002,2]
[388737837,1759342249101,-500.0,0.0002,2]
[388737838,1759342249114,-500.0,0.0002,2]
[388737839,1759342249124,-500.0,0.0002,2]
[388737840,1759342249134,-787.61,0.0002,2]
[388737841,1759342249143,-400.0,0.0002,2]
[388737842,1759342249153,-500.0,0.0002,2]
[388737843,1759342249163,-1021.25,0.0002,2]
[388737844,1759342249172,-528.56,0.0002,2]
[388737845,1759342249182,-500.0,0.0002,2]
[388737846,1759342249192,-500.0,0.0002,2]
[388737847,1759342249203,-500.0,0.0002,2]
[388737848,1759342249214,-525.78,0.0002,2]
[388737849,1759342249224,-500.0,0.0002,2]
[388737850,1759342249234,-500.0,0.0002,2]
[388737851,1759342249244,-269.50487386,0.0002,2]
[388737852,1759342249254,-553.72855784,0.0002,2]
[388737853,1759342249264,-500.0,0.0002,2]
[388737854,1759342249274,-400.0,0.0002,2]
[388737855,1759342249285,-500.0,0.0002,2]
[388737856,1759342249296,-500.0,0.0002,2]
[388737857,1759342249305,-500.0,0.0002,2]
[388737858,1759342249315,-500.0,0.0002,2]
[388737859,1759342249326,-500.0,0.0002,2]
[388737860,1759342249336,-500.0,0.0002,2]
[388737861,1759342249346,-500.0,0.0002,2]
[388737862,1759342249355,-500.0,0.0002,2]
[388737863,1759342249366,-936.29,0.0002,2]
[388737864,1759342249376,-500.0,0.0002,2]
[388737865,1759342249385,-500.0,0.0002,2]
[388737866,1759342249395,-529.19,0.0002,2]
[388737867,1759342249405,-500.0,0.0002,2]
[388737868,1759342249415,-500.0,0.0002,2]
[388737869,1759342249425,-500.0,0.0002,2]
[388737870,1759342249434,-440.0,0.0002,2]
[388737871,1759342249443,-500.0,0.0002,2]
[388737872,1759342249452,-380.0,0.0002,2]
[388737873,1759342249462,-500.0,0.0002,2]
[388737874,1759342249471,-500.0,0.0002,2]
[388737875,1759342249480,-500.0,0.0002,2]
[388737876,1759342249489,-1006.67,0.0002,2]
[388737877,1759342249499,-500.0,0.0002,2]
[388737878,1759342249508,-500.0,0.0002,2]
[388737879,1759342249518,-500.0,0.0002,2]
[388737880,1759342249527,-500.0,0.0002,2]
[388737881,1759342249536,-500.0,0.0002,2]
[388737882,1759342249546,-500.0,0.0002,2]
[388737883,1759342249556,-500.0,0.0002,2]
[388737884,1759342249566,-500.0,0.0002,2]
[388737885,1759342249575,-500.0,0.0002,2]
[388737886,1759342249584,-500.0,0.0002,2]
[388737887,1759342249594,-500.0,0.0002,2]
[388737888,1759342249604,-500.0,0.0002,2]
[388737889,1759342249613,-452.80397994,0.0002,2]
[388737890,1759342249623,-500.0,0.0002,2]
[388737891,1759342249633,-500.0,0.0002,2]
[388737892,1759342249642,-500.0,0.0002,2]
[388737893,1759342249652,-500.0,0.0002,2]
[388737894,1759342249661,-500.0,0.0002,2]
[388737895,1759342249671,-500.0,0.0002,2]
[388737896,1759342249680,-440.0,0.0002,2]
[388737897,1759342249689,-528.47,0.0002,2]
[388737898,1759342249701,-380.0,0.0002,2]
[388737899,1759342249711,-500.0,0.0002,2]
[388737900,1759342249721,-500.0,0.0002,2]
[388737901,1759342249730,-500.0,0.0002,2]
[388737902,1759342249740,-4672.83628518,0.0002,2]
[388737903,1759342249749,-500.0,0.0002,2]
[388737904,1759342249759,-500.0,0.0002,2]
[388737905,1759342249769,-500.0,0.0002,2]
[388737906,1759342249781,-500.0,0.0002,2]
[388737907,1759342249794,-611.01,0.0002,2]
[388737908,1759342249803,-2390.09,0.0002,2]
[388737909,1759342249813,-1330.39,0.0002,2]
[388737910,1759342249823,-500.0,0.0002,2]
[388737911,1759342249833,-500.0,0.0002,2]
[388737912,1759342249842,-500.0,0.0002,2]
[388737913,1759342249851,-500.0,0.0002,2]
[388737914,1759342249863,-435.32,0.0002,2]
[388737915,1759342249873,-1326.33,0.0002,2]
[388737916,1759342249882,-500.0,0.0002,2]
[388737917,1759342249891,-699.45,0.0002,2]
[388737918,1759342249900,-1136.12,0.0002,2]
[388737919,1759342249909,-682.72,0.0002,2]
[388737920,1759342249919,-500.0,0.0002,2]
[388737921,1759342249929,-500.0,0.0002,2]
[388737922,1759342249939,-500.0,0.0002,2]
[388737923,1759342249948,-500.0,0.0002,2]
[388737924,1759342249958,-500.0,0.0002,2]
[388737925,1759342249968,-500.0,0.0002,2]
[388737926,1759342249979,-500.0,0.0002,2]
[388737927,1759342249987,-1068.12,0.0002,2]
[388737928,1759342249997,-500.0,0.0002,2]
[388737929,1759342250007,-500.0,0.0002,2]
[388737930,1759342250016,-500.0,0.0002,2]
[388737931,1759342250025,-500.0,0.0002,2]
[388737932,1759342250035,-500.0,0.0002,2]
[388737933,1759342250044,-500.0,0.0002,2]
[388737934,1759342250054,-877.5,0.0002,2]
[388737935,1759342250063,-500.0,0.0002,2]
[388737936,1759342250072,-500.0,0.0002,2]
[388737937,1759342250083,-1924.02,0.0002,2]
[388737938,1759342250093,-500.0,0.0002,2]
[388737939,1759342250102,-1088.76,0.0002,2]
[388737940,1759342250112,-500.0,0.0002,2]
[388737941,1759342250121,-564.25,0.0002,2]
[388737942,1759342250132,-633.54,0.0002,2]
[388737943,1759342250142,-311.61065171,0.0002,2]
[388737944,1759342250151,-5203.32,0.0002,2]
[388737945,1759342250160,-500.0,0.0002,2]
[388737946,1759342250170,-722.56,0.0002,2]
[388737947,1759342250179,-500.0,0.0002,2]
[388737948,1759342250189,-1014.42,0.0002,2]
[388737949,1759342250199,-500.0,0.0002,2]
[388737950,1759342250209,-500.0,0.0002,2]
[388737951,1759342250218,-500.0,0.0002,2]
[388737952,1759342250228,-500.0,0.0002,2]
[388737953,1759342250237,-500.0,0.0002,2]
[388737954,1759342250247,-501.11,0.0002,2]
[388737955,1759342250256,-500.0,0.0002,2]
[388737956,1759342250266,-1751.43,0.0002,2]
[388737957,1759342250278,-500.0,0.0002,2]
[388737958,1759342250288,-500.0,0.0002,2]
[388737959,1759342250297,-558.3,0.0002,2]
[388737960,1759342250307,-595.94,0.0002,2]
[388737961,1759342250317,-500.0,0.0002,2]
[388737962,1759342250327,-500.0,0.0002,2]
[388737963,1759342250336,-661.13,0.0002,2]
[388737964,1759342250345,-339.05891476,0.0002,2]
[388737965,1759342250354,-500.0,0.0002,2]
[388737966,1759342250364,-500.0,0.0002,2]
[388737967,1759342250373,-500.0,0.0002,2]
[388737968,1759342250383,-739.54,0.0002,2]
[388737969,1759342250393,-500.0,0.0002,2]
[388737970,1759342250401,-500.0,0.0002,2]
[388737971,1759342250410,-500.0,0.0002,2]
[388737972,1759342250420,-500.0,0.0002,2]
[388737973,1759342250429,-500.0,0.0002,2]
[388737974,1759342250438,-500.0,0.0002,2]
[388737975,1759342250447,-500.0,0.0002,2]
[388737976,1759342250456,-880.83,0.0002,2]
[388737977,1759342250465,-500.0,0.0002,2]
[388737978,1759342250474,-500.0,0.0002,2]
[388737979,1759342250483,-500.0,0.0002,2]
[388737980,1759342250492,-310.59,0.0002,2]
[388737981,1759342250501,-500.0,0.0002,2]
[388737982,1759342250510,-500.0,0.0002,2]
[388737983,1759342250519,-823.5,0.0002,2]
[388737984,1759342250528,-500.0,0.0002,2]
[388737985,1759342250537,-500.0,0.0002,2]
[388737986,1759342250547,-500.0,0.0002,2]
[388737987,1759342250557,-1437.2,0.0002,2]
[388737988,1759342250566,-634.89,0.0002,2]
[388737989,1759342250575,-825.35,0.0002,2]
[388737990,1759342250584,-500.0,0.0002,2]
[388737991,1759342250593,-661.01,0.0002,2]
[388737992,1759342250603,-1958.89,0.0002,2]
[388737993,1759342250612,-683.07,0.0002,2]
[388737994,1759342250621,-500.0,0.0002,2]
[388737995,1759342250630,-500.0,0.0002,2]
[388737996,1759342250639,-500.0,0.0002,2]
[388737997,1759342250649,-500.0,0.0002,2]
[388737998,1759342250658,-790.83,0.0002,2]
[388737999,1759342250668,-361.08212739,0.0002,2]
[388738000,1759342250677,-655.96,0.0002,2]
[388738001,1759342250687,-500.0,0.0002,2]
[388738002,1759342250696,-500.0,0.0002,2]
[388738003,1759342250705,-566.82,0.0002,2]
[388738004,1759342250714,-500.0,0.0002,2]
[388738005,1759342250724,-592.11414966,0.0002,2]
[388738006,1759342250733,-183.36210868,0.0002,2]
[388738007,1759342250742,-500.0,0.0002,2]
[388738008,1759342250751,-500.0,0.0002,2]
[388738009,1759342250760,-500.0,0.0002,2]
[388738010,1759342250769,-551.0,0.0002,2]
[388738011,1759342250779,-500.0,0.0002,2]
[388738012,1759342250788,-501.2,0.0002,2]
[388738013,1759342250799,-500.0,0.0002,2]
[388738014,1759342250810,-500.0,0.0002,2]
[388738015,1759342250820,-500.0,0.0002,2]
[388738016,1759342250829,-500.0,0.0002,2]
[388738017,1759342250839,-500.0,0.0002,2]
[388738018,1759342250849,-1385.94,0.0002,2]
[388738019,1759342250858,-480.0,0.0002,2]
[388738020,1759342250867,-500.0,0.0002,2]
[388738021,1759342250878,-4000.0,0.0002,4]
[388738022,1759342250887,-500.0,0.0002,2]
[388738023,1759342250897,-1406.52,0.0002,2]
[388738024,1759342250906,-2613.49,0.0002,2]
[388738025,1759342250915,-500.0,0.0002,2]
[388738026,1759342250924,-817.28,0.0002,2]
[388738027,1759342250934,-500.0,0.0002,2]
[388738028,1759342250943,-500.0,0.0002,2]
[388738029,1759342250953,-1740.98,0.0002,2]
[388738030,1759342251092,-942.29,0.0002,2]
[388738031,1759342251101,-151.0,0.0002,2]
[388738032,1759342251110,-151.0,0.0002,2]
[388738033,1759342251119,-151.0,0.0002,2]
[388738034,1759342251127,-151.0,0.0002,2]
[388738035,1759342251136,-151.0,0.0002,2]
[388738036,1759342251145,-500.0,0.0002,2]
[388738037,1759342251154,-400.0,0.0002,2]
[388738038,1759342251162,-164.473959,0.0002,2]
[388738039,1759342251171,-164.473959,0.0002,2]
[388738040,1759342251180,-582.67825345,0.00020021,2]
[388738041,1759342251189,-500.0,0.00020021,2]
[388738042,1759342251199,-500.0,0.00020021,2]
[388738043,1759342251207,-1000.0,0.00020021,2]
[388738044,1759342251216,-500.0,0.00020021,2]
[388738045,1759342251224,-1000.0,0.00020021,2]
[388738046,1759342251233,-4789.18695855,0.00020169,2]
[388738047,1759342251242,-500.0,0.00020268,2]
[388738048,1759342251251,-630.89369699,0.00020268,2]
[388738049,1759342251259,-298.5814752,0.00020268,2]
[388738050,1759342251268,-1500.0,0.00020268,2]
[388738051,1759342251277,-1500.0,0.00020268,2]
[388738052,1759342251286,-1500.0,0.00020268,2]
[388738053,1759342251294,-1500.0,0.00020268,2]
[388738054,1759342251303,-1500.0,0.00020268,2]
[388738055,1759342251312,-1500.0,0.00020268,2]
[388738056,1759342251321,-1500.0,0.00020268,2]
[388738057,1759342251329,-500.0,0.00020268,2]
[388738058,1759342251338,-1500.0,0.00020268,2]
[388738059,1759342251347,-1500.0,0.00020268,2]
[388738060,1759342251356,-166.0,0.00020269,2]
[388738061,1759342251365,-500.0,0.00020273,2]
[388738062,1759342251374,-500.0,0.00020273,2]
[388738063,1759342251383,-500.0,0.00020273,2]
[388738064,1759342251391,-500.0,0.00020273,2]
[388738065,1759342251401,-500.0,0.00020273,2]
[388738066,1759342251410,-500.0,0.00020273,2]
[388738067,1759342251420,-500.0,0.00020273,2]
[388738068,1759342251429,-400.0,0.00020273,2]
[388738069,1759342251438,-500.0,0.00020273,2]
[388738070,1759342251447,-420.0,0.00020273,2]
[388738071,1759342251457,-500.0,0.00020273,2]
[388738072,1759342251466,-500.0,0.00020273,2]
[388738073,1759342251474,-198.01,0.00020273,2]
[388738074,1759342251483,-500.0,0.00020273,2]
[388738075,1759342251493,-500.0,0.00020273,2]
[388738076,1759342251501,-500.0,0.00020273,2]
[388738077,1759342251510,-500.0,0.00020273,2]
[388738078,1759342251520,-500.0,0.00020273,2]
[388738079,1759342251529,-293.95438043,0.00020273,2]
[388738080,1759342251538,-500.0,0.00020273,2]
[388738081,1759342251548,-500.0,0.00020273,2]
[388738082,1759342251557,-340.0,0.00020273,2]
[388738083,1759342251566,-500.0,0.00020273,2]
[388738084,1759342251575,-288.93,0.00020273,2]
[388738085,1759342251585,-500.0,0.00020273,2]
[388738086,1759342251594,-420.0,0.00020273,2]
[388738087,1759342251603,-574.37,0.00020273,2]
[388738088,1759342251612,-500.0,0.00020273,2]
[388738089,1759342251621,-500.0,0.00020273,2]
[388738090,1759342251631,-928.86,0.00020273,2]
[388738091,1759342251640,-500.0,0.00020273,2]
[388738092,1759342251650,-500.0,0.00020273,2]
[388738093,1759342251660,-500.0,0.00020273,2]
[388738094,1759342251669,-500.0,0.00020273,2]
[388738095,1759342251679,-500.0,0.00020273,2]
[388738096,1759342251688,-500.0,0.00020273,2]
[388738097,1759342251698,-260.68327672,0.00020273,2]
[388738098,1759342251707,-500.0,0.00020273,2]
[388738099,1759342251717,-833.61,0.00020273,2]
[388738100,1759342251727,-798.88,0.00020273,2]
[388738101,1759342251747,-500.0,0.00020273,2]
[388738102,1759342251758,-500.0,0.00020273,2]
[388738103,1759342251768,-500.0,0.00020273,2]
[388738104,1759342251780,-500.0,0.00020273,2]
[388738105,1759342251790,-500.0,0.00020273,2]
[388738106,1759342251804,-500.0,0.00020273,2]
[388738107,1759342251816,-500.0,0.00020273,2]
[388738108,1759342251826,-787.61,0.00020273,2]
[388738109,1759342251835,-500.0,0.00020273,2]
[388738110,1759342251847,-1021.25,0.00020273,2]
[388738111,1759342251857,-528.56,0.00020273,2]
[388738112,1759342251867,-500.0,0.00020273,2]
[388738113,1759342251880,-500.0,0.00020273,2]
[388738114,1759342251890,-500.0,0.00020273,2]
[388738115,1759342251900,-525.78,0.00020273,2]
[388738116,1759342251910,-454.27,0.00020273,2]
[388738117,1759342251920,-500.0,0.00020273,2]
[388738118,1759342251930,-500.0,0.00020273,2]
[388738119,1759342251940,-500.0,0.00020273,2]
[388738120,1759342251950,-238.59536996,0.00020273,2]
[388738121,1759342251960,-360.13835277,0.00020273,2]
[388738122,1759342251970,-500.0,0.00020273,2]
[388738123,1759342251980,-500.0,0.00020273,2]
[388738124,1759342251990,-500.0,0.00020273,2]
[388738125,1759342252000,-500.0,0.00020273,2]
[388738126,1759342252011,-383.87822302,0.00020273,2]
[388738127,1759342252020,-936.29,0.00020273,2]
[388738128,1759342252030,-500.0,0.00020273,2]
[388738129,1759342252039,-490.55,0.00020273,2]
[388738130,1759342252050,-529.19,0.00020273,2]
[388738131,1759342252059,-500.0,0.00020273,2]
[388738132,1759342252068,-322.06,0.00020273,2]
[388738133,1759342252077,-500.0,0.00020273,2]
[388738134,1759342252087,-212.11444338,0.00020273,2]
[388738135,1759342252097,-380.0,0.00020273,2]
[388738136,1759342252106,-500.0,0.00020273,2]
[388738137,1759342252116,-500.0,0.00020273,2]
[388738138,1759342252125,-500.0,0.00020273,2]
[388738139,1759342252135,-1006.67,0.00020273,2]
[388738140,1759342252144,-500.0,0.00020273,2]
[388738141,1759342252154,-500.0,0.00020273,2]
[388738142,1759342252164,-500.0,0.00020273,2]
[388738143,1759342252174,-500.0,0.00020273,2]
[388738144,1759342252183,-500.0,0.00020273,2]
[388738145,1759342252192,-420.71822185,0.00020273,2]
[388738146,1759342252201,-460.0,0.00020273,2]
[388738147,1759342252210,-500.0,0.00020273,2]
[388738148,1759342252219,-402.78913804,0.00020273,2]
[388738149,1759342252229,-500.0,0.00020273,2]
[388738150,1759342252238,-500.0,0.00020273,2]
[388738151,1759342252247,-500.0,0.00020273,2]
[388738152,1759342252256,-500.0,0.00020273,2]
[388738153,1759342252265,-500.0,0.00020273,2]
[388738154,1759342252274,-500.0,0.00020273,2]
[388738155,1759342252283,-500.0,0.00020273,2]
[388738156,1759342252293,-500.0,0.00020273,2]
[388738157,1759342252302,-500.0,0.00020273,2]
[388738158,1759342252311,-500.0,0.00020273,2]
[388738159,1759342252320,-500.0,0.00020273,2]
[388738160,1759342252329,-500.0,0.00020273,2]
[388738161,1759342252338,-500.0,0.00020273,2]
[388738162,1759342252347,-500.0,0.00020273,2]
[388738163,1759342252356,-500.0,0.00020273,2]
[388738164,1759342252365,-500.0,0.00020273,2]
[388738165,1759342252374,-611.01,0.00020273,2]
[388738166,1759342252384,-2390.09,0.00020273,2]
[388738167,1759342252393,-1330.39,0.00020273,2]
[388738168,1759342252403,-500.0,0.00020273,2]
[388738169,1759342252414,-500.0,0.00020273,2]
[388738170,1759342252423,-500.0,0.00020273,2]
[388738171,1759342252432,-500.0,0.00020273,2]
[388738172,1759342252442,-1326.33,0.00020273,2]
[388738173,1759342252452,-500.0,0.00020273,2]
[388738174,1759342252461,-699.45,0.00020273,2]
[388738175,1759342252470,-1136.12,0.00020273,2]
[388738176,1759342252479,-682.72,0.00020273,2]
[388738177,1759342252487,-500.0,0.00020273,2]
[388738178,1759342252497,-500.0,0.00020273,2]
[388738179,1759342252506,-500.0,0.00020273,2]
[388738180,1759342252515,-500.0,0.00020273,2]
[388738181,1759342252524,-500.0,0.00020273,2]
[388738182,1759342252533,-500.0,0.00020273,2]
[388738183,1759342252544,-500.0,0.00020273,2]
[388738184,1759342252553,-1068.12,0.00020273,2]
[388738185,1759342252563,-500.0,0.00020273,2]
[388738186,1759342252572,-500.0,0.00020273,2]
[388738187,1759342252581,-500.0,0.00020273,2]
[388738188,1759342252592,-500.0,0.00020273,2]
[388738189,1759342252607,-500.0,0.00020273,2]
[388738190,1759342252617,-500.0,0.00020273,2]
[388738191,1759342252626,-877.5,0.00020273,2]
[388738192,1759342252636,-500.0,0.00020273,2]
[388738193,1759342252645,-500.0,0.00020273,2]
[388738194,1759342252655,-1924.02,0.00020273,2]
[388738195,1759342252666,-480.0,0.00020273,2]
[388738196,1759342252676,-1088.76,0.00020273,2]
[388738197,1759342252685,-227.83752247,0.00020273,2]
[388738198,1759342252694,-564.25,0.00020273,2]
[388738199,1759342252704,-633.54,0.00020273,2]
[388738200,1759342252714,-5203.32,0.00020273,2]
[388738201,1759342252724,-154.7989169,0.00020273,2]
[388738202,1759342252734,-722.56,0.00020273,2]
[388738203,1759342252743,-500.0,0.00020273,2]
[388738204,1759342252752,-1014.42,0.00020273,2]
[388738205,1759342252763,-500.0,0.00020273,2]
[388738206,1759342252772,-500.0,0.00020273,2]
[388738207,1759342252782,-500.0,0.00020273,2]
[388738208,1759342252792,-500.0,0.00020273,2]
[388738209,1759342252806,-501.11,0.00020273,2]
[388738210,1759342252815,-500.0,0.00020273,2]
[388738211,1759342252825,-1751.43,0.00020273,2]
[388738212,1759342252834,-500.0,0.00020273,2]
[388738213,1759342252845,-500.0,0.00020273,2]
[388738214,1759342252854,-558.3,0.00020273,2]
[388738215,1759342252865,-595.94,0.00020273,2]
[388738216,1759342252875,-500.0,0.00020273,2]
[388738217,1759342252884,-500.0,0.00020273,2]
[388738218,1759342252893,-661.13,0.00020273,2]
[388738219,1759342252903,-500.0,0.00020273,2]
[388738220,1759342252912,-500.0,0.00020273,2]
[388738221,1759342252922,-739.54,0.00020273,2]
[388738222,1759342252932,-500.0,0.00020273,2]
[388738223,1759342252942,-500.0,0.00020273,2]
[388738224,1759342252951,-500.0,0.00020273,2]
[388738225,1759342252961,-500.0,0.00020273,2]
[388738226,1759342252973,-500.0,0.00020273,2]
[388738227,1759342252983,-500.0,0.00020273,2]
[388738228,1759342252992,-500.0,0.00020273,2]
[388738229,1759342253001,-880.83,0.00020273,2]
[388738230,1759342253011,-522.35,0.00020273,2]
[388738231,1759342253021,-500.0,0.00020273,2]
[388738232,1759342253030,-544.33147788,0.00020273,2]
[388738233,1759342253040,-500.0,0.00020273,2]
[388738234,1759342253050,-823.5,0.00020273,2]
[388738235,1759342253060,-500.0,0.00020273,2]
[388738236,1759342253070,-460.0,0.00020273,2]
[388738237,1759342253079,-500.0,0.00020273,2]
[388738238,1759342253089,-1437.2,0.00020273,2]
[388738239,1759342253098,-634.89,0.00020273,2]
[388738240,1759342253109,-825.35,0.00020273,2]
[388738241,1759342253118,-565.8063914,0.00020273,2]
[388738242,1759342253128,-661.01,0.00020273,2]
[388738243,1759342253137,-1958.89,0.00020273,2]
[388738244,1759342253147,-683.07,0.00020273,2]
[388738245,1759342253156,-500.0,0.00020273,2]
[388738246,1759342253166,-500.0,0.00020273,2]
[388738247,1759342253176,-500.0,0.00020273,2]
[388738248,1759342253185,-500.0,0.00020273,2]
[388738249,1759342253195,-790.83,0.00020273,2]
[388738250,1759342253205,-655.96,0.00020273,2]
[388738251,1759342253214,-460.0,0.00020273,2]
[388738252,1759342253223,-500.0,0.00020273,2]
[388738253,1759342253232,-566.82,0.00020273,2]
[388738254,1759342253243,-500.0,0.00020273,2]
[388738255,1759342253254,-500.0,0.00020273,2]
[388738256,1759342253263,-400.0,0.00020273,2]
[388738257,1759342253274,-500.0,0.00020273,2]
[388738258,1759342253283,-551.0,0.00020273,2]
[388738259,1759342253293,-152.55651801,0.00020273,2]
[388738260,1759342253303,-501.2,0.00020273,2]
[388738261,1759342253312,-500.0,0.00020273,2]
[388738262,1759342253322,-500.0,0.00020273,2]
[388738263,1759342253332,-500.0,0.00020273,2]
[388738264,1759342253342,-500.0,0.00020273,2]
[388738265,1759342253351,-380.0,0.00020273,2]
[388738266,1759342253361,-1385.94,0.00020273,2]
[388738267,1759342253371,-401.44,0.00020273,2]
[388738268,1759342253381,-500.0,0.00020273,2]
[388738269,1759342253391,-1406.52,0.00020273,2]
[388738270,1759342253401,-2613.49,0.00020273,2]
[388738271,1759342253411,-500.0,0.00020273,2]
[388738272,1759342253421,-817.28,0.00020273,2]
[388738273,1759342253432,-527.85327465,0.00020273,2]
[388738274,1759342253442,-500.0,0.00020273,2]
[388738275,1759342253451,-1740.98,0.00020273,2]
[388738276,1759342253461,-942.29,0.00020273,2]
[388738277,1759342253471,-500.0,0.00020273,2]
[388738278,1759342253481,-500.0,0.00020274,2]
[388738279,1759342253491,-500.73488065,0.00020321,2]
[388738280,1759342253500,-500.0,0.00020321,2]
[388738281,1759342253509,-1000.0,0.00020321,2]
[388738282,1759342253519,-1000.0,0.00020321,2]
[388738283,1759342253529,-500.0,0.00020321,2]
[388738284,1759342253539,-1061.6749,0.00020364,2]
[388738285,1759342253549,-167.471281,0.00020364,2]
[388738286,1759342253558,-311.7246167,0.00020473,2]
[388738287,1759342253568,-355.83647921,0.00020473,2]
[388738288,1759342253577,-1423.34591683,0.00020473,2]
[388738289,1759342253588,-641.01137847,0.00020473,2]
[388738290,1759342253598,-3202.52831287,0.00020473,2]
[388738291,1759342253607,-1245.65156834,0.00020473,2]
[388738292,1759342253618,-2564.04551389,0.00020473,2]
[388738293,1759342253628,-5693.38366733,0.00020473,2]
[388738294,1759342253637,-8887.01606822,0.00020473,2]
[388738295,1759342253647,-500.0,0.00020521,2]
[388738296,1759342253657,-1000.0,0.00020521,2]
[388738297,1759342253666,-561.17950999,0.00020521,2]
[388738298,1759342253675,-1000.0,0.00020521,2]
[388738299,1759342253685,-500.0,0.00020521,2]
[388738300,1759342253694,-1000.0,0.00020521,2]
[388738301,1759342253704,-1000.0,0.00020521,2]
[388738302,1759342253715,-1000.0,0.00020521,2]
[388738303,1759342253725,-521.44036848,0.00020521,2]
[388738304,1759342253735,-1000.0,0.00020521,2]
[388738305,1759342253744,-1000.0,0.00020521,2]
[388738306,1759342253753,-1000.0,0.00020521,2]
[388738307,1759342253762,-500.0,0.00020521,2]
[388738308,1759342253772,-1000.0,0.00020521,2]
[388738309,1759342253782,-1000.0,0.00020521,2]
[388738310,1759342253793,-1000.0,0.00020521,2]
[388738311,1759342253807,-500.0,0.00020521,2]
[388738312,1759342253816,-847.1513624,0.00020521,2]
[388738313,1759342253826,-500.0,0.00020521,2]
[388738314,1759342253836,-413.1103713,0.00020521,2]
[388738315,1759342253846,-500.0,0.00020521,2]
[388738316,1759342253855,-500.0,0.00020521,2]
[388738317,1759342253865,-1000.0,0.00020521,2]